fUST/lending_fUST_20250802
["ID","MTS","AMOUNT","RATE_DAILY","PERIOD"]
[376780214,1754121051670,-460.0,0.00024657,10]
[376780215,1754121051680,-460.0,0.00024657,10]
[376780216,1754121051689,-586.57,0.00024657,10]
[376780217,1754121051698,-586.57,0.00024657,10]
[376780218,1754121051708,-586.57,0.00024657,10]
[376780219,1754121051718,-460.0,0.00024657,10]
[376780220,1754121051728,-586.57,0.00024657,10]
[376780221,1754121051737,-460.0,0.00024657,10]
[376780222,1754121051747,-586.57,0.00024657,10]
[376780223,1754121051756,-460.0,0.00024657,10]
[376780224,1754121051767,-460.0,0.00024657,10]
[376780225,1754121051777,-460.0,0.00024657,10]
[376780226,1754121051786,-460.0,0.00024657,10]
[376780227,1754121051795,-574.05,0.00024657,10]
[376780228,1754121051804,-460.0,0.00024657,10]
[376780229,1754121051814,-460.0,0.00024657,10]
[376780230,1754121051824,-460.0,0.00024657,10]
[376780231,1754121051833,-586.57,0.00024657,10]
[376780232,1754121051842,-586.57,0.00024657,10]
[376780233,1754121051852,-460.0,0.00024657,10]
[376780234,1754121051862,-460.0,0.00024657,10]
[376780235,1754121051870,-586.57,0.00024657,10]
[376780236,1754121051879,-465.85004244,0.00024657,10]
[376780237,1754121051889,-586.57,0.00024657,10]
[376780238,1754121051898,-460.0,0.00024657,10]
[376780239,1754121051907,-460.0,0.00024657,10]
[376780240,1754121051916,-462.23039013,0.00024657,10]
[376780241,1754121051925,-586.57,0.00024657,10]
[376780242,1754121051935,-586.57,0.00024657,10]
[376780243,1754121051945,-586.57,0.00024657,10]
[376780244,1754121051956,-586.57,0.00024657,10]
[376780245,1754121051965,-586.57,0.00024657,10]
[376780246,1754121051974,-586.57,0.00024657,10]
[376780247,1754121051983,-586.57,0.00024657,10]
[376780248,1754121051994,-400.408991,0.00024657,7]
[376780249,1754121052003,-586.57,0.00024657,10]
[376780250,1754121052012,-400.408991,0.00024657,7]
[376780251,1754121052021,-586.57,0.00024657,10]
[376780252,1754121052031,-586.57,0.00024657,10]
[376780253,1754121052039,-641.29,0.00024657,10]
[376780254,1754121052049,-400.408991,0.00024657,7]
[376780255,1754121052058,-641.29,0.00024657,10]
[376780256,1754121052067,-586.76525804,0.00024657,10]
[376780257,1754121052076,-641.29,0.00024657,10]
[376780258,1754121052085,-400.408991,0.00024657,7]
[376780259,1754121052094,-641.29,0.00024657,10]
[376780260,1754121052103,-641.29,0.00024657,10]
[376780261,1754121052112,-400.408991,0.00024657,7]
[376780262,1754121052121,-641.29,0.00024657,10]
[376780263,1754121052130,-400.408991,0.00024657,7]
[376780264,1754121052139,-400.408991,0.00024657,7]
[376780265,1754121052147,-400.408991,0.00024657,7]
[376780266,1754121052156,-400.408991,0.00024657,7]
[376780267,1754121052166,-641.29,0.00024657,10]
[376780268,1754121052175,-400.408991,0.00024657,7]
[376780269,1754121052184,-641.29,0.00024657,10]
[376780270,1754121052194,-641.29,0.00024657,10]
[376780271,1754121052203,-400.408991,0.00024657,7]
[376780272,1754121052212,-641.29,0.00024657,10]
[376780273,1754121052221,-8682.48,0.00024657,10]
[376780274,1754121052232,-135.96433695,0.00024657,7]
[376780275,1754121052555,-160.0,0.00023673,2]
[376780276,1754121052566,-460.86285458,0.00023673,2]
[376780277,1754121052576,-264.44465405,0.00024657,7]
[376780278,1754121052585,-641.29,0.00024657,10]
[376780279,1754121052595,-400.408991,0.00024657,7]
[376780280,1754121052605,-641.29,0.00024657,10]
[376780281,1754121052614,-641.29,0.00024657,10]
[376780282,1754121052623,-400.408991,0.00024657,7]
[376780283,1754121052632,-335.90930215,0.00024657,10]
[376780284,1754121052643,-641.29,0.00024657,10]
[376780285,1754121052653,-400.408991,0.00024657,7]
[376780286,1754121052662,-641.29,0.00024657,10]
[376780287,1754121052671,-641.29,0.00024657,10]
[376780288,1754121052681,-400.408991,0.00024657,7]
[376780289,1754121052691,-641.29,0.00024657,10]
[376780290,1754121052701,-641.29,0.00024657,10]
[376780291,1754121052712,-400.408991,0.00024657,7]
[376780292,1754121052722,-641.29,0.00024657,10]
[376780293,1754121052731,-532.58354348,0.00024657,10]
[376780294,1754121052962,-66.44468206,0.00024657,10]
[376780295,1754121107118,150.0,0.00022557,2]
[376780296,1754121230316,1000.0,0.00022798,2]
[376780299,1754121354502,-228.62217661,0.00023345,2]
[376780300,1754121356029,-235.48106624,0.00023345,2]
[376780301,1754121378933,-35.89675715,0.00023345,2]
[376780302,1754121378958,-144.10324285,0.00023465,2]
[376780303,1754121381083,-48.04052615,0.00023465,2]
[376780304,1754121381106,-124.68753925,0.00023768,2]
[376780305,1754121405563,-205.76354787,0.0002353,2]
[376780306,1754121408461,345.4544965,0.00022557,2]
[376780307,1754121408602,213.705544,0.00022772,2]
[376780308,1754121468283,368.15509566,0.00022768,2]
[376780309,1754121468307,6148.37786864,0.00022768,2]
[376780310,1754121499438,1829.0,0.00027196,30]
[376780311,1754121523647,176.17,0.00022768,2]
[376780312,1754121536097,-364.22984587,0.00023,2]
[376780313,1754121537638,-175.00958264,0.00023,2]
[376780314,1754121539284,-267.69345147,0.00023,2]
[376780315,1754121540815,-113.06712002,0.00023,2]
[376780317,1754121578173,3675.45213136,0.000228,2]
[376780318,1754121578196,1324.54786864,0.000228,2]
[376780319,1754121582941,160.08915591,0.000235,120]
[376780320,1754121594106,5000.0,0.000228,2]
[376780321,1754121611880,3675.45213136,0.000228,2]
[376780322,1754121611903,1324.54786864,0.000228,2]
[376780323,1754121621003,5000.0,0.000228,2]
[376780324,1754121629758,1078.46467325,0.000228,2]
[376780325,1754121637812,2596.98745811,0.000228,2]
[376780326,1754121637837,2403.01254189,0.000228,2]
[376780327,1754121674865,156.6,0.000228,2]
[376780328,1754121712019,440.94409678,0.00022557,2]
[376780329,1754121744689,500.0,0.00026027,120]
[376780330,1754121757204,-527.02465094,0.00023294,2]
[376780331,1754121757233,-205.0,0.00023294,2]
[376780332,1754121757260,-300.0,0.00023294,2]
[376780333,1754121757289,-1200.0,0.00023294,2]
[376780334,1754121759326,500.0,0.00026027,120]
[376780336,1754121770925,500.0,0.00026027,120]
[376780337,1754121783525,500.0,0.00026027,120]
[376780338,1754121793610,500.0,0.00026027,120]
[376780339,1754121821915,737.0,0.00026027,120]
[376780340,1754121893461,5535.95069812,0.0002273,2]
[376780341,1754121893483,4464.04930188,0.0002273,2]
[376780344,1754121956122,-500.0,0.0002336,2]
[376780345,1754121956154,-175.00958264,0.00023573,2]
[376780346,1754121956184,-173.62430134,0.00023757,2]
[376780347,1754121956214,-160.0,0.00023758,2]
[376780348,1754121956244,-160.0,0.00023759,2]
[376780349,1754121956272,-231.57249719,0.00023759,2]
[376780350,1754121956301,-215.0795835,0.00023759,2]
[376780351,1754121956330,-160.0,0.00023759,2]
[376780352,1754121956359,-216.27517063,0.00023759,2]
[376780353,1754121956389,-160.0,0.00023759,2]
[376780354,1754121956420,-160.0,0.00023759,2]
[376780355,1754121956448,-560.7690298,0.00023759,2]
[376780356,1754121956478,-300.0,0.00023761,2]
[376780357,1754121956508,-1200.0,0.00023761,2]
[376780358,1754121963033,300.0,0.00023761,2]
[376780359,1754121972996,410.23023395,0.00023663,2]
[376780360,1754121991619,545.10943585,0.00023761,2]
[376780361,1754121991641,654.89056415,0.00023761,2]
[376780362,1754122013147,309.11423002,0.00021661,2]
[376780363,1754122030542,-490.41333569,0.00023765,2]
[376780364,1754122030572,-179.001,0.00023765,4]
[376780365,1754122030601,-351.83,0.00023765,4]
[376780366,1754122030631,-353.46883268,0.00023768,2]
[376780367,1754122030662,-300.0,0.00023768,2]
[376780368,1754122030691,-220.3946588,0.00023768,2]
[376780369,1754122030862,-1385.55,0.00023769,3]
[376780370,1754122030892,-692.77,0.00023769,3]
[376780371,1754122030922,-346.39,0.00023769,3]
[376780372,1754122030952,-173.19,0.00023769,3]
[376780373,1754122030982,-494.36434566,0.00023769,3]
[376780374,1754122031173,-25.25565434,0.00023769,3]
[376780375,1754122031201,-681.8,0.00023769,10]
[376780376,1754122033432,-8927.96171451,0.00023769,2]
[376780377,1754122033471,-10000.0,0.00023769,2]
[376780378,1754122033766,-10000.0,0.00023769,2]
[376780379,1754122034288,-10000.0,0.00023769,2]
[376780380,1754122034318,-10000.0,0.00023769,2]
[376780381,1754122034939,-1072.03828549,0.00023769,2]
[376780382,1754122034968,-500.0,0.00023773,2]
[376780383,1754122034997,-500.0,0.00023773,2]
[376780384,1754122035026,-178.12299723,0.00023773,2]
[376780385,1754122035054,-500.0,0.00023773,2]
[376780386,1754122035081,-500.0,0.00023773,2]
[376780387,1754122035108,-501.76956693,0.00023773,2]
[376780388,1754122035137,-500.0,0.00023773,2]
[376780389,1754122035164,-160.0,0.00023776,3]
[376780390,1754122035191,-559.88784922,0.00023778,2]
[376780391,1754122035344,-56.36260226,0.00023778,2]
[376780392,1754122035377,-500.0,0.00023778,2]
[376780393,1754122035417,-500.0,0.00023778,2]
[376780394,1754122035445,-201.82122837,0.00023778,2]
[376780395,1754122035475,-409.68522204,0.00023778,2]
[376780396,1754122035504,-500.0,0.00023778,2]
[376780397,1754122035533,-500.0,0.00023778,2]
[376780398,1754122035564,-500.0,0.00023778,2]
[376780399,1754122035593,-404.51981187,0.00023778,2]
[376780400,1754122035624,-500.0,0.00023778,2]
[376780401,1754122035656,-500.0,0.00023778,2]
[376780402,1754122035686,-467.94747544,0.00023778,2]
[376780403,1754122035862,-32.05252456,0.00023778,2]
[376780404,1754122035908,-500.0,0.00023778,2]
[376780405,1754122035937,-500.0,0.00023778,2]
[376780406,1754122035970,-500.0,0.00023778,2]
[376780407,1754122036002,-500.0,0.00023778,2]
[376780408,1754122036032,-500.0,0.00023778,2]
[376780409,1754122036061,-470.69201939,0.00023778,2]
[376780410,1754122036091,-500.0,0.00023778,2]
[376780411,1754122036120,-500.0,0.00023778,2]
[376780412,1754122036150,-500.0,0.00023778,2]
[376780413,1754122036182,-500.0,0.00023778,2]
[376780414,1754122036374,-500.0,0.00023778,2]
[376780415,1754122036404,-500.0,0.00023778,2]
[376780416,1754122036435,-500.0,0.00023778,2]
[376780417,1754122036464,-500.0,0.00023778,2]
[376780418,1754122036495,-500.0,0.00023778,2]
[376780419,1754122036525,-500.0,0.00023778,2]
[376780420,1754122036556,-500.0,0.00023778,2]
[376780421,1754122036584,-612.43205488,0.00023778,2]
[376780422,1754122036615,-500.0,0.00023778,2]
[376780423,1754122036644,-275.13589024,0.00023778,2]
[376780424,1754122036956,-224.86410976,0.00023778,2]
[376780425,1754122036986,-500.0,0.00023778,2]
[376780426,1754122037016,-561.68728446,0.00023778,2]
[376780427,1754122037345,-283.48007098,0.00023779,2]
[376780428,1754122037363,-7426.89721156,0.00023779,2]
[376780429,1754122037397,-10000.0,0.00023779,2]
[376780430,1754122037423,-10000.0,0.00023779,2]
[376780431,1754122037436,-10000.0,0.00023779,2]
[376780432,1754122037620,-10000.0,0.00023779,2]
[376780433,1754122038016,-10000.0,0.00023779,2]
[376780434,1754122038273,-10000.0,0.00023779,2]
[376780435,1754122038574,-10000.0,0.00023779,2]
[376780436,1754122038859,-10000.0,0.00023779,2]
[376780437,1754122039137,-10000.0,0.00023779,2]
[376780438,1754122039484,-10000.0,0.00023779,2]
[376780439,1754122039743,-10000.0,0.00023779,2]
[376780440,1754122039983,-10000.0,0.00023779,2]
[376780441,1754122040247,-1308.38367885,0.00023779,2]
[376780442,1754122040270,-7383.2326423,0.00023779,2]
[376780443,1754122080261,150.13505703,0.00023778,2]
[376780444,1754122086012,500.0,0.0002336,2]
[376780445,1754122110591,810.0,0.00027204,30]
[376780446,1754122127427,9349.86494297,0.00023678,2]
[376780447,1754122127452,10000.0,0.00023678,2]
[376780448,1754122127475,10000.0,0.00023678,2]
[376780449,1754122127498,10000.0,0.00023678,2]
[376780450,1754122127522,10000.0,0.00023678,2]
[376780451,1754122127546,10000.0,0.00023678,2]
[376780452,1754122127570,10000.0,0.00023678,2]
[376780453,1754122127594,10000.0,0.00023678,2]
[376780454,1754122127618,10000.0,0.00023678,2]
[376780455,1754122127642,10000.0,0.00023678,2]
[376780456,1754122127667,10000.0,0.00023678,2]
[376780457,1754122127693,10000.0,0.00023678,2]
[376780458,1754122127717,10000.0,0.00023678,2]
[376780459,1754122127742,10000.0,0.00023678,2]
[376780460,1754122127766,10000.0,0.00023678,2]
[376780461,1754122127790,10000.0,0.00023678,2]
[376780462,1754122127813,10000.0,0.00023678,2]
[376780463,1754122127838,10000.0,0.00023678,2]
[376780464,1754122127862,10000.0,0.00023678,2]
[376780465,1754122127887,10000.0,0.00023678,2]
[376780466,1754122127914,10000.0,0.00023678,2]
[376780467,1754122127938,10000.0,0.00023678,2]
[376780468,1754122127963,10000.0,0.00023678,2]
[376780469,1754122127986,10000.0,0.00023678,2]
[376780470,1754122128012,10000.0,0.00023678,2]
[376780471,1754122128040,10000.0,0.00023678,2]
[376780472,1754122128064,10000.0,0.00023678,2]
[376780473,1754122128088,10000.0,0.00023678,2]
[376780474,1754122128112,10000.0,0.00023678,2]
[376780475,1754122128136,10000.0,0.00023678,2]
[376780476,1754122128160,10000.0,0.00023678,2]
[376780477,1754122128185,10000.0,0.00023678,2]
[376780478,1754122128209,10000.0,0.00023678,2]
[376780479,1754122128232,10000.0,0.00023678,2]
[376780480,1754122128256,10000.0,0.00023678,2]
[376780481,1754122128280,10000.0,0.00023678,2]
[376780482,1754122128304,10000.0,0.00023678,2]
[376780483,1754122128328,650.13505703,0.00023678,2]
[376780484,1754122138956,5000.0,0.0002378,2]
[376780485,1754122147016,4349.86494297,0.0002378,2]
[376780486,1754122147040,650.13505703,0.0002378,2]
[376780487,1754122151664,1300.41875285,0.00023753,2]
[376780488,1754122155184,5000.0,0.0002378,2]
[376780489,1754122164169,3049.44619012,0.0002378,2]
[376780490,1754122164193,1950.55380988,0.0002378,2]
[376780491,1754122165448,183.818179,0.00023448,2]
[376780492,1754122172552,5000.0,0.0002378,2]
[376780493,1754122180369,251.02755631,0.0002378,2]
[376780494,1754122189487,2614.60045481,0.0002378,2]
[376780495,1754122189510,2385.39954519,0.0002378,2]
[376780496,1754122198767,571.665811,0.00023135,2]
[376780497,1754122199150,217.336637,0.00023136,2]
[376780498,1754122199584,414.400297,0.00023199,2]
[376780499,1754122199957,1060.23971027,0.0002328,2]
[376780500,1754122205089,5000.0,0.0002378,2]
[376780501,1754122221033,350.95799954,0.0002378,2]
[376780502,1754122221057,4649.04200046,0.0002378,2]
[376780562,1754122232147,-841.70373825,0.00023849,2]
[376780564,1754122232160,-160.0,0.00023852,2]
[376780567,1754122232174,-160.0,0.00023852,2]
[376780569,1754122232188,-160.0,0.00023852,2]
[376780573,1754122232202,-610.15067278,0.00023917,2]
[376780576,1754122232216,-151.0,0.00024,9]
[376780581,1754122232231,-2971.13083078,0.00024,2]
[376780585,1754122232244,-151.0,0.000241,6]
[376780587,1754122232255,-151.0,0.000242,10]
[376780590,1754122232266,-151.0,0.000243,5]
[376780592,1754122232279,-50000.0,0.000243,2]
[376780595,1754122232294,-1200.0,0.0002432,2]
[376780596,1754122232308,-513.47259835,0.00024321,2]
[376780597,1754122232319,-500.0,0.00024321,2]
[376780598,1754122232332,-151.0,0.000244,5]
[376780599,1754122232345,-151.0,0.000245,5]
[376780600,1754122232358,-245.0,0.00024556,2]
[376780601,1754122232369,-300.0,0.00024556,2]
[376780602,1754122232382,-300.0,0.00024556,2]
[376780603,1754122232396,-170.4289651,0.00024557,2]
[376780604,1754122232409,-1491.07311368,0.00024557,2]
[376780605,1754122232422,-830.65627018,0.00024557,2]
[376780606,1754122232433,-175.7290685,0.00024557,2]
[376780607,1754122232446,-398.37553445,0.00024557,2]
[376780608,1754122232458,-151.0,0.000246,8]
[376780609,1754122232470,-1656.568299,0.000246,2]
[376780610,1754122232483,-151.0,0.000246,5]
[376780611,1754122232494,-160.0,0.00024624,4]
[376780612,1754122232507,-394.56,0.00024646,10]
[376780613,1754122232519,-328.8,0.00024646,10]
[376780614,1754122232530,-568.17,0.00024647,10]
[376780615,1754122232543,-473.47,0.00024647,10]
[376780616,1754122232555,-500.0,0.00024656,2]
[376780617,1754122232566,-1123.29356342,0.00024656,2]
[376780618,1754122232578,-179.15911721,0.00024656,2]
[376780619,1754122232590,-218.96577993,0.00024656,2]
[376780620,1754122232601,-500.0,0.00024656,2]
[376780621,1754122232612,-500.0,0.00024656,2]
[376780622,1754122232624,-173.52080939,0.00024656,2]
[376780623,1754122232637,-500.0,0.00024656,2]
[376780624,1754122232649,-500.0,0.00024656,2]
[376780625,1754122232661,-500.0,0.00024656,2]
[376780626,1754122232673,-500.0,0.00024656,2]
[376780627,1754122232685,-522.09888231,0.00024656,2]
[376780628,1754122232698,-318.51081869,0.00024656,2]
[376780629,1754122232710,-500.0,0.00024656,2]
[376780630,1754122232721,-500.0,0.00024656,2]
[376780631,1754122232733,-500.0,0.00024656,2]
[376780632,1754122232745,-628.57190422,0.00024656,2]
[376780633,1754122232757,-500.0,0.00024656,2]
[376780634,1754122232769,-500.0,0.00024656,2]
[376780635,1754122232781,-500.0,0.00024656,2]
[376780636,1754122232798,-500.0,0.00024656,2]
[376780637,1754122232811,-248.53809898,0.00024656,2]
[376780638,1754122232825,-300.0,0.00024656,2]
[376780639,1754122232838,-500.0,0.00024656,2]
[376780640,1754122232852,-500.0,0.00024656,2]
[376780641,1754122232865,-184.38479639,0.00024656,2]
[376780642,1754122232880,-500.0,0.00024656,2]
[376780643,1754122232893,-500.0,0.00024656,2]
[376780644,1754122232906,-500.0,0.00024656,2]
[376780645,1754122232919,-500.0,0.00024656,2]
[376780646,1754122232931,-500.0,0.00024656,2]
[376780647,1754122232943,-500.0,0.00024656,2]
[376780648,1754122232957,-601.54334533,0.00024656,2]
[376780649,1754122232967,-568.9324814,0.00024656,2]
[376780650,1754122232976,-500.0,0.00024656,2]
[376780651,1754122232986,-500.0,0.00024656,2]
[376780652,1754122232995,-500.0,0.00024656,2]
[376780653,1754122233152,-500.0,0.00024656,2]
[376780654,1754122233177,-500.0,0.00024656,2]
[376780655,1754122233187,-500.0,0.00024656,2]
[376780656,1754122233197,-500.0,0.00024656,2]
[376780657,1754122233206,-500.0,0.00024656,2]
[376780658,1754122233217,-500.0,0.00024656,2]
[376780659,1754122233226,-500.0,0.00024656,2]
[376780660,1754122233235,-564.33479697,0.00024656,2]
[376780661,1754122233245,-287.67623954,0.00024656,2]
[376780662,1754122233254,-500.0,0.00024656,2]
[376780663,1754122233264,-500.0,0.00024656,2]
[376780664,1754122233273,-282.45457202,0.00024656,2]
[376780665,1754122233282,-512.57363876,0.00024656,2]
[376780666,1754122233292,-512.57363876,0.00024656,2]
[376780667,1754122233301,-512.57363876,0.00024656,2]
[376780668,1754122233310,-500.0,0.00024656,2]
[376780669,1754122233320,-512.57363876,0.00024656,2]
[376780670,1754122233329,-500.0,0.00024656,2]
[376780671,1754122233339,-512.57363876,0.00024656,2]
[376780672,1754122233348,-512.57363876,0.00024656,2]
[376780673,1754122233357,-512.57363876,0.00024656,2]
[376780674,1754122233366,-512.57363876,0.00024656,2]
[376780675,1754122233376,-512.57363876,0.00024656,2]
[376780676,1754122233386,-500.0,0.00024656,2]
[376780677,1754122233396,-500.0,0.00024656,2]
[376780678,1754122233406,-500.0,0.00024656,2]
[376780679,1754122233415,-500.0,0.00024656,2]
[376780680,1754122233424,-500.0,0.00024656,2]
[376780681,1754122233434,-500.0,0.00024656,2]
[376780682,1754122233443,-500.0,0.00024656,2]
[376780683,1754122233452,-500.0,0.00024656,2]
[376780684,1754122233462,-270.54304186,0.00024656,2]
[376780685,1754122233472,-398.5240933,0.00024656,2]
[376780686,1754122233481,-500.0,0.00024656,2]
[376780687,1754122233490,-500.0,0.00024656,2]
[376780688,1754122233499,-650.73911448,0.00024656,2]
[376780689,1754122233509,-500.0,0.00024656,2]
[376780690,1754122233518,-500.0,0.00024656,2]
[376780691,1754122233528,-500.0,0.00024656,2]
[376780692,1754122233537,-500.0,0.00024656,2]
[376780693,1754122233546,-500.0,0.00024656,2]
[376780694,1754122233556,-248.28051547,0.00024656,2]
[376780695,1754122233566,-500.0,0.00024656,2]
[376780696,1754122233575,-500.0,0.00024656,2]
[376780697,1754122233585,-500.0,0.00024656,2]
[376780698,1754122233594,-500.0,0.00024656,2]
[376780699,1754122233603,-500.0,0.00024656,2]
[376780700,1754122233613,-500.0,0.00024656,2]
[376780701,1754122233622,-500.0,0.00024656,2]
[376780702,1754122233635,-500.0,0.00024656,2]
[376780703,1754122233645,-500.0,0.00024656,2]
[376780704,1754122233654,-500.0,0.00024656,2]
[376780705,1754122233664,-278.96686531,0.00024656,2]
[376780706,1754122233673,-609.17405529,0.00024656,2]
[376780707,1754122233683,-609.17405529,0.00024656,2]
[376780708,1754122233693,-500.0,0.00024656,2]
[376780709,1754122233702,-167.8441711,0.00024657,2]
[376780710,1754122233711,-151.0,0.00024657,7]
[376780711,1754122233721,-151.0,0.00024657,7]
[376780712,1754122233731,-151.0,0.00024657,7]
[376780713,1754122233741,-151.0,0.00024657,7]
[376780714,1754122233751,-151.0,0.00024657,7]
[376780715,1754122233761,-151.0,0.00024657,7]
[376780716,1754122233771,-151.0,0.00024657,7]
[376780717,1754122233781,-151.0,0.00024657,7]
[376780718,1754122233791,-151.0,0.00024657,7]
[376780719,1754122233801,-151.0,0.00024657,7]
[376780720,1754122233811,-151.0,0.00024657,7]
[376780721,1754122233821,-151.0,0.00024657,7]
[376780722,1754122233831,-151.0,0.00024657,7]
[376780723,1754122233841,-151.0,0.00024657,7]
[376780724,1754122233850,-151.0,0.00024657,7]
[376780725,1754122233860,-151.0,0.00024657,7]
[376780726,1754122233871,-151.0,0.00024657,7]
[376780727,1754122233886,-172.005061,0.00024657,7]
[376780728,1754122233896,-151.0,0.00024657,7]
[376780729,1754122233906,-151.0,0.00024657,7]
[376780730,1754122233915,-151.0,0.00024657,7]
[376780731,1754122233925,-151.0,0.00024657,7]
[376780732,1754122233935,-151.0,0.00024657,7]
[376780733,1754122233945,-151.0,0.00024657,7]
[376780734,1754122233956,-151.0,0.00024657,7]
[376780735,1754122233966,-151.0,0.00024657,7]
[376780736,1754122233976,-151.0,0.00024657,7]
[376780737,1754122233986,-151.0,0.00024657,7]
[376780738,1754122233997,-151.0,0.00024657,7]
[376780739,1754122234007,-151.0,0.00024657,7]
[376780740,1754122234016,-151.0,0.00024657,7]
[376780741,1754122234026,-151.0,0.00024657,7]
[376780742,1754122234036,-151.0,0.00024657,7]
[376780743,1754122234045,-151.0,0.00024657,7]
[376780744,1754122234055,-151.0,0.00024657,7]
[376780745,1754122234065,-151.0,0.00024657,7]
[376780746,1754122234075,-272.710779,0.00024657,7]
[376780747,1754122234086,-151.0,0.00024657,7]
[376780748,1754122234096,-152.850982,0.00024657,7]
[376780749,1754122234105,-151.904505,0.00024657,7]
[376780750,1754122234115,-460.0,0.00024657,10]
[376780751,1754122234124,-151.529057,0.00024657,7]
[376780752,1754122234133,-460.0,0.00024657,10]
[376780753,1754122234142,-460.0,0.00024657,10]
[376780754,1754122234152,-460.0,0.00024657,10]
[376780755,1754122234162,-460.0,0.00024657,10]
[376780756,1754122234171,-460.0,0.00024657,10]
[376780757,1754122234180,-151.387919,0.00024657,7]
[376780758,1754122234189,-460.0,0.00024657,10]
[376780759,1754122234199,-460.0,0.00024657,10]
[376780760,1754122234208,-151.0,0.00024657,7]
[376780761,1754122234218,-151.0,0.00024657,7]
[376780762,1754122234227,-151.0,0.00024657,7]
[376780763,1754122234236,-151.0,0.00024657,7]
[376780764,1754122234245,-151.0,0.00024657,7]
[376780765,1754122234254,-151.0,0.00024657,7]
[376780766,1754122234263,-151.0,0.00024657,7]
[376780767,1754122234272,-151.0,0.00024657,7]
[376780768,1754122234282,-151.0,0.00024657,7]
[376780769,1754122234292,-151.0,0.00024657,7]
[376780770,1754122234301,-151.0,0.00024657,7]
[376780771,1754122234309,-151.0,0.00024657,7]
[376780772,1754122234318,-151.0,0.00024657,7]
[376780773,1754122234327,-245.64763,0.00024657,7]
[376780774,1754122234336,-460.0,0.00024657,10]
[376780775,1754122234345,-460.0,0.00024657,10]
[376780776,1754122234354,-460.0,0.00024657,10]
[376780777,1754122234364,-460.0,0.00024657,10]
[376780778,1754122234373,-464.19195007,0.00024657,10]
[376780779,1754122234383,-151.0,0.00024657,7]
[376780780,1754122234392,-151.0,0.00024657,7]
[376780781,1754122234401,-151.0,0.00024657,7]
[376780782,1754122234410,-151.0,0.00024657,7]
[376780783,1754122234420,-153.166051,0.00024657,7]
[376780784,1754122234429,-460.74779457,0.00024657,10]
[376780785,1754122234438,-151.0,0.00024657,7]
[376780786,1754122234447,-151.0,0.00024657,7]
[376780787,1754122234456,-460.0,0.00024657,10]
[376780788,1754122234465,-461.1347353,0.00024657,10]
[376780789,1754122234475,-151.0,0.00024657,7]
[376780790,1754122234484,-151.0,0.00024657,7]
[376780791,1754122234493,-151.0,0.00024657,7]
[376780792,1754122234503,-151.0,0.00024657,7]
[376780793,1754122234511,-151.0,0.00024657,7]
[376780794,1754122234519,-151.0,0.00024657,7]
[376780795,1754122234527,-151.0,0.00024657,7]
[376780796,1754122234537,-464.59091,0.00024657,7]
[376780797,1754122234547,-464.59091,0.00024657,7]
[376780798,1754122234556,-464.59091,0.00024657,7]
[376780799,1754122234567,-464.59091,0.00024657,7]
[376780800,1754122234577,-464.59091,0.00024657,7]